fUSD/lending_fUSD_20251006
["ID","MTS","AMOUNT","RATE_DAILY","PERIOD"]
[389620261,1759751451719,-504.69,0.00016438,2]
[389620263,1759751451728,-500.0,0.00016438,2]
[389620265,1759751451737,-504.69,0.00016438,2]
[389620267,1759751451747,-500.0,0.00016438,2]
[389620269,1759751451755,-500.0,0.00016438,2]
[389620271,1759751451765,-504.69,0.00016438,2]
[389620273,1759751451774,-279.03035516,0.00016438,2]
[389620275,1759751451783,-504.69,0.00016438,2]
[389620277,1759751451792,-504.69,0.00016438,2]
[389620279,1759751451802,-504.69,0.00016438,2]
[389620281,1759751451811,-504.69,0.00016438,2]
[389620283,1759751451820,-277.80688436,0.00016438,2]
[389620382,1759751452812,-226.88311564,0.00016438,2]
[389620384,1759751452822,-504.69,0.00016438,2]
[389620386,1759751452831,-504.69,0.00016438,2]
[389620388,1759751452840,-504.69,0.00016438,2]
[389620390,1759751452849,-609.56,0.00016438,2]
[389620392,1759751452859,-504.69,0.00016438,2]
[389620394,1759751452868,-504.75472407,0.00016438,2]
[389620396,1759751452877,-500.0,0.00016438,2]
[389620398,1759751452886,-500.0,0.00016438,2]
[389620400,1759751452895,-500.0,0.00016438,2]
[389620402,1759751452904,-500.0,0.00016438,2]
[389620404,1759751452914,-500.0,0.00016438,2]
[389620406,1759751452924,-500.0,0.00016438,2]
[389620408,1759751452934,-500.0,0.00016438,2]
[389620411,1759751452944,-500.0,0.00016438,2]
[389620413,1759751452954,-500.0,0.00016438,2]
[389620415,1759751452963,-500.0,0.00016438,2]
[389620417,1759751452974,-500.0,0.00016438,2]
[389620419,1759751452986,-500.0,0.00016438,2]
[389620421,1759751452995,-500.0,0.00016438,2]
[389620423,1759751453005,-500.0,0.00016438,2]
[389620425,1759751453015,-316.51569652,0.00016438,2]
[389620427,1759751453027,-622.18,0.00016438,2]
[389620429,1759751453037,-4183.7,0.00016438,2]
[389620431,1759751453047,-4183.7,0.00016438,2]
[389620433,1759751453059,-4183.7,0.00016438,2]
[389620435,1759751453068,-4183.7,0.00016438,2]
[389620437,1759751453077,-4183.7,0.00016438,2]
[389620439,1759751453087,-4183.7,0.00016438,2]
[389620441,1759751453098,-4183.7,0.00016438,2]
[389620443,1759751453108,-4183.7,0.00016438,2]
[389620445,1759751453118,-500.0,0.00016438,2]
[389620448,1759751453127,-4183.7,0.00016438,2]
[389620449,1759751453137,-4183.7,0.00016438,2]
[389620452,1759751453149,-4183.7,0.00016438,2]
[389620454,1759751453159,-4183.7,0.00016438,2]
[389620456,1759751453169,-4183.7,0.00016438,2]
[389620458,1759751453179,-4183.7,0.00016438,2]
[389620460,1759751453188,-4183.7,0.00016438,2]
[389620462,1759751453198,-1313.24123278,0.00016438,2]
[389620468,1759751453253,-2870.45876722,0.00016438,2]
[389620470,1759751453264,-3215.71986827,0.00016438,2]
[389620472,1759751453276,-967.98013173,0.00016438,2]
[389620474,1759751453286,-3532.01986827,0.00016438,2]
[389620479,1759751453320,-651.68013173,0.00016438,2]
[389620481,1759751453329,-995.67986828,0.00016438,2]
[389620647,1759752399126,-225.04758026,0.00014465,2]
[389620648,1759752548092,-177.3653882,0.00014319,2]
[389620654,1759752632246,-19.1152828,0.00014319,2]
[389620655,1759752632256,-150.0,0.00014391,2]
[389620656,1759752632266,-1200.0,0.00014391,2]
[389620657,1759752632276,-300.0,0.00014391,2]
[389620658,1759752632285,-1000.0,0.00014391,2]
[389620659,1759752632295,-417.1321764,0.00014391,2]
[389620660,1759752632304,-781.83038869,0.00014392,7]
[389620661,1759752632319,-116458.65028834,0.00014392,7]
[389620662,1759752632368,-2544.59203797,0.00014392,7]
[389620663,1759752632378,-250.0,0.0001441,2]
[389620664,1759752632388,-161.26,0.00014427,2]
[389620665,1759752632397,-1000.0,0.00014464,2]
[389620666,1759752632407,-4190.82,0.00014466,2]
[389620667,1759752632416,-170.8560736,0.00014491,2]
[389620668,1759752632426,-160.44,0.00014543,2]
[389620669,1759752632435,-2000.0,0.0001457,2]
[389620670,1759752632446,-2696.26,0.00014591,2]
[389620671,1759752632459,-666.0,0.00014591,3]
[389620672,1759752632468,-999.99999997,0.00014655,7]
[389620673,1759752632478,-168.91,0.0001497,2]
[389620674,1759752632487,-170.85607359,0.00015012,2]
[389620675,1759752632497,-538.4762783,0.00015144,2]
[389620676,1759752632507,-150.0,0.000152,2]
[389620677,1759752632517,-1600.0,0.000152,5]
[389620679,1759752632528,-859.0,0.00015261,2]
[389620681,1759752632537,-171.70131482,0.000153,2]
[389620682,1759752632547,-171.70131481,0.000153,2]
[389620683,1759752632556,-3300.0,0.000153,5]
[389620684,1759752632565,-523.33418916,0.00015301,2]
[389620686,1759752632574,-859.0,0.00015318,2]
[389620688,1759752632583,-859.0,0.00015335,2]
[389620689,1759752632593,-1216.07281317,0.00015351,2]
[389620690,1759752632602,-5000.0,0.000154,5]
[389620691,1759752632611,-204.24,0.00015409,2]
[389620692,1759752632620,-859.0,0.00015417,2]
[389620693,1759752632629,-859.0,0.00015435,2]
[389620694,1759752632638,-6486.27022245,0.00015438,2]
[389620695,1759752632647,-859.0,0.00015451,2]
[389620696,1759752632656,-1216.07281315,0.00015461,2]
[389620697,1759752632665,-6700.0,0.000155,5]
[389620698,1759752632674,-859.0,0.00015502,2]
[389620700,1759752632683,-635.88,0.00015505,2]
[389620702,1759752632692,-151.0,0.00015506,2]
[389620704,1759752632702,-151.0,0.00015506,2]
[389620706,1759752632711,-151.0,0.00015506,2]
[389620708,1759752632720,-151.0,0.00015506,2]
[389620710,1759752632729,-151.0,0.00015506,2]
[389620712,1759752632739,-151.0,0.00015506,2]
[389620714,1759752632748,-151.0,0.00015506,2]
[389620716,1759752632757,-151.0,0.00015506,2]
[389620718,1759752632767,-151.0,0.00015506,2]
[389620719,1759752632776,-151.0,0.00015506,2]
[389620720,1759752632786,-151.0,0.00015506,2]
[389620721,1759752632796,-151.0,0.00015506,2]
[389620722,1759752632806,-151.0,0.00015506,2]
[389620723,1759752632815,-151.0,0.00015506,2]
[389620724,1759752632824,-151.0,0.00015506,2]
[389620725,1759752632833,-151.0,0.00015506,2]
[389620726,1759752632843,-151.0,0.00015506,2]
[389620727,1759752632853,-151.0,0.00015506,2]
[389620728,1759752632863,-151.0,0.00015506,2]
[389620729,1759752632872,-151.0,0.00015506,2]
[389620730,1759752632882,-151.0,0.00015506,2]
[389620731,1759752632891,-151.0,0.00015506,2]
[389620732,1759752632900,-151.0,0.00015506,2]
[389620733,1759752632909,-151.0,0.00015506,2]
[389620734,1759752632918,-151.0,0.00015506,2]
[389620735,1759752632928,-151.0,0.00015506,2]
[389620736,1759752632937,-151.0,0.00015506,2]
[389620737,1759752632947,-151.0,0.00015506,2]
[389620738,1759752632956,-151.0,0.00015506,2]
[389620739,1759752632965,-151.0,0.00015506,2]
[389620740,1759752632978,-151.0,0.00015506,2]
[389620741,1759752632988,-151.0,0.00015506,2]
[389620742,1759752632998,-151.0,0.00015506,2]
[389620743,1759752633007,-151.0,0.00015506,2]
[389620744,1759752633018,-151.0,0.00015506,2]
[389620745,1759752633028,-151.0,0.00015506,2]
[389620746,1759752633038,-217.90118849,0.00015506,2]
[389620747,1759752633048,-151.0,0.00015506,2]
[389620748,1759752633058,-151.0,0.00015506,2]
[389620749,1759752633067,-151.0,0.00015506,2]
[389620750,1759752633076,-151.0,0.00015506,2]
[389620751,1759752633086,-151.0,0.00015506,2]
[389620752,1759752633095,-151.0,0.00015506,2]
[389620753,1759752633105,-200.0,0.00015506,2]
[389620754,1759752633115,-151.0,0.00015506,2]
[389620755,1759752633125,-151.0,0.00015506,2]
[389620756,1759752633134,-151.0,0.00015506,2]
[389620757,1759752633144,-200.0,0.00015506,2]
[389620758,1759752633153,-151.0,0.00015506,2]
[389620759,1759752633162,-151.0,0.00015506,2]
[389620760,1759752633171,-151.0,0.00015506,2]
[389620761,1759752633180,-151.0,0.00015506,2]
[389620762,1759752633189,-151.0,0.00015506,2]
[389620763,1759752633199,-156.12615864,0.00015506,2]
[389620764,1759752633208,-500.0,0.00015506,2]
[389620765,1759752633218,-200.0,0.00015506,2]
[389620766,1759752633227,-255.0,0.00015514,2]
[389620767,1759752633237,-9000.0,0.00015515,2]
[389620768,1759752633247,-7591.59567682,0.00015515,2]
[389620769,1759752633257,-231.28369723,0.00015515,2]
[389620770,1759752633267,-300.0,0.00015515,2]
[389620771,1759752633277,-151.0,0.00015515,2]
[389620772,1759752633287,-500.0,0.00015515,2]
[389620773,1759752633296,-500.0,0.00015515,2]
[389620774,1759752633305,-1000.0,0.00015515,2]
[389620775,1759752633315,-500.0,0.00015515,2]
[389620776,1759752633324,-500.0,0.00015515,2]
[389620777,1759752633334,-578.20924308,0.00015515,2]
[389620778,1759752633343,-500.0,0.00015515,2]
[389620779,1759752633352,-500.0,0.00015515,2]
[389620780,1759752633362,-151.0,0.00015515,2]
[389620781,1759752633372,-7965.41053268,0.00015515,2]
[389620782,1759752633381,-200.0,0.00015515,2]
[389620783,1759752633391,-200.0,0.00015515,2]
[389620784,1759752633400,-200.0,0.00015515,2]
[389620785,1759752633410,-279.12316657,0.00015515,2]
[389620786,1759752633419,-322.6107,0.00015515,2]
[389620787,1759752633433,-151.0,0.00015515,2]
[389620788,1759752633444,-170.85607359,0.00015533,2]
[389620789,1759752633456,-2001.2473,0.00015534,2]
[389620790,1759752633466,-859.0,0.00015567,2]
[389620791,1759752633476,-8260.13072239,0.0001557,2]
[389620792,1759752633486,-1216.07281315,0.0001557,2]
[389620793,1759752633495,-8300.0,0.000156,5]
[389620794,1759752633505,-370.68887098,0.00015618,2]
[389620795,1759752633515,-8565.75555911,0.00015625,2]
[389620796,1759752633525,-1211.66997425,0.00015633,5]
[389620797,1759752633535,-1916.76712701,0.00015634,2]
[389620798,1759752633544,-914.76,0.0001567,2]
[389620799,1759752633555,-8882.6885148,0.0001568,2]
[389620800,1759752633565,-1216.07281315,0.0001568,2]
[389620801,1759752633574,-1600.0,0.000157,5]
[389620802,1759752633583,-168.0,0.00015708,2]
[389620803,1759752633592,-2571.22,0.00015709,2]
[389620804,1759752633600,-200.0,0.00015709,2]
[389620805,1759752633608,-9211.34798985,0.00015735,2]
[389620806,1759752633617,-300.0,0.0001575,2]
[389620807,1759752633625,-160.44,0.00015755,2]
[389620808,1759752633633,-635.88,0.00015779,2]
[389620809,1759752633641,-1216.07281315,0.0001579,2]
[389620810,1759752633650,-1933.38985562,0.0001579,2]
[389620811,1759752633658,-1600.0,0.000158,5]
[389620812,1759752633666,-1046.66837832,0.00015812,2]
[389620813,1759752633675,-1680.0,0.0001583,2]
[389620814,1759752633684,-500.0,0.00015832,2]
[389620815,1759752633693,-250.0,0.00015832,2]
[389620816,1759752633703,-500.0,0.00015832,2]
[389620817,1759752633712,-1216.07281315,0.00015899,2]
[389620818,1759752633720,-5000.0,0.000159,2]
[389620819,1759752633729,-1600.0,0.000159,5]
[389620820,1759752633738,-180.05196358,0.000159,2]
[389620821,1759752633747,-500.54427269,0.00015973,2]
[389620822,1759752633756,-502.13812397,0.00015973,2]
[389620823,1759752633766,-165.07679832,0.00015973,2]
[389620824,1759752633775,-156.0841444,0.00015973,2]
[389620825,1759752633784,-167.17982377,0.00015973,2]
[389620826,1759752633793,-622.00758782,0.00015973,2]
[389620827,1759752633802,-548.68064684,0.00015973,2]
[389620828,1759752633811,-501.79525835,0.00015973,2]
[389620829,1759752633821,-462.23469362,0.00015973,2]
[389620830,1759752633830,-500.0,0.00015973,2]
[389620831,1759752633839,-159.70394716,0.00015973,2]
[389620832,1759752633849,-500.0,0.00015973,2]
[389620833,1759752633858,-500.0,0.00015973,2]
[389620834,1759752633867,-500.0,0.00015973,2]
[389620835,1759752633877,-500.0,0.00015973,2]
[389620836,1759752633886,-500.0,0.00015973,2]
[389620837,1759752633895,-500.0,0.00015973,2]
[389620838,1759752633905,-500.0,0.00015973,2]
[389620839,1759752633914,-500.0,0.00015973,2]
[389620840,1759752633925,-500.0,0.00015973,2]
[389620841,1759752633935,-272.94875658,0.00015973,2]
[389620842,1759752633944,-500.0,0.00015973,2]
[389620843,1759752633956,-506.3617594,0.00015973,2]
[389620844,1759752633965,-500.0,0.00015973,2]
[389620845,1759752633974,-501.29828573,0.00015973,2]
[389620846,1759752633989,-500.55455613,0.00015973,2]
[389620847,1759752633998,-500.0,0.00015973,2]
[389620848,1759752634008,-500.68988614,0.00015973,2]
[389620849,1759752634018,-313.31410706,0.00015973,2]
[389620850,1759752634031,-500.0,0.00015973,2]
[389620851,1759752634040,-500.0,0.00015973,2]
[389620852,1759752634049,-500.0,0.00015973,2]
[389620853,1759752634063,-907.81534421,0.0001599,2]
[389620854,1759752634079,-6.94465579,0.0001599,2]
[389620855,1759752634089,-151.0,0.00015997,2]
[389620856,1759752634099,-162.0,0.00016,3]
[389620857,1759752634109,-7901.05534421,0.00016,2]
[389620860,1759752638067,-548.93840897,0.0001439,2]
[389620861,1759752638077,-500.0,0.0001439,2]
[389620862,1759752638087,-367.97117383,0.00016,2]
[389620863,1759752638123,-519.6236554,0.00016,2]
[389620864,1759752638226,-690438.70250676,0.00016,2]
[389620865,1759752638236,-162.0,0.00016,3]
[389620866,1759752638246,-9999.99,0.00016,2]
[389620867,1759752638256,-9999.99,0.00016,2]
[389620868,1759752638269,-22148.25,0.00016,2]
[389620869,1759752638287,-10000.0,0.00016,2]
[389620870,1759752638301,-22500.0,0.00016,2]
[389620871,1759752638313,-2000.0,0.00016004,2]
[389620872,1759752638327,-300.0,0.00016004,2]
[389620873,1759752638342,-1216.07281315,0.00016009,2]
[389620874,1759752638358,-234.10848874,0.0001602,2]
[389620875,1759752638373,-8843.01,0.0001605,2]
[389620876,1759752638386,-635.88,0.00016053,2]
[389620877,1759752638400,-200.0,0.00016054,2]
[389620878,1759752638411,-859.0,0.00016069,2]
[389620879,1759752638424,-234.10848869,0.00016073,2]
[389620880,1759752638438,-2285.04886108,0.00016109,2]
[389620881,1759752638452,-1216.07281315,0.00016119,2]
[389620882,1759752638466,-180.05196356,0.00016119,2]
[389620883,1759752638484,-859.0,0.00016125,2]
[389620884,1759752638499,-234.10848869,0.00016126,2]
[389620885,1759752638512,-1855.66316,0.00016154,2]
[389620886,1759752638527,-234.10848869,0.00016179,2]
[389620887,1759752638543,-183.1288968,0.00016188,2]
[389620888,1759752638557,-1000.0,0.00016189,2]
[389620889,1759752638571,-1908.96288859,0.00016192,2]
[389620890,1759752638584,-2500.0,0.00016198,3]
[389620891,1759752638600,-168.91,0.00016205,2]
[389620892,1759752638614,-2500.0,0.00016206,3]
[389620893,1759752638627,-2500.0,0.00016215,3]
[389620894,1759752638638,-1000.0,0.00016222,2]
[389620895,1759752638651,-2500.0,0.00016224,3]
[389620896,1759752638665,-1216.07281315,0.00016228,2]
[389620897,1759752638680,-234.10848869,0.00016232,2]
[389620898,1759752638691,-2500.0,0.00016233,3]
[389620899,1759752638703,-151.0,0.00016233,2]
[389620900,1759752638716,-286.78449995,0.00016238,2]
[389620901,1759752638731,-1908.96288859,0.00016241,2]
[389620902,1759752638744,-2500.0,0.00016242,3]
[389620903,1759752638756,-2500.0,0.0001625,3]
[389620904,1759752638767,-2500.0,0.00016259,3]
[389620905,1759752638779,-2500.0,0.00016268,3]
[389620906,1759752638798,-11968.69518499,0.0001627,2]
[389620907,1759752638811,-410.1809912,0.00016275,2]
[389620908,1759752638825,-2500.0,0.00016277,3]
[389620909,1759752638837,-4672.89972109,0.0001628,2]
[389620910,1759752638850,-38379.72091842,0.0001628,2]
[389620911,1759752638863,-76227.63993624,0.00016284,2]
[389620912,1759752638876,-234.10848869,0.00016285,2]
[389620913,1759752638889,-2500.0,0.00016286,3]
[389620914,1759752638902,-11968.69518499,0.00016286,2]
[389620915,1759752638916,-103045.47937566,0.00016287,2]
[389620916,1759752638928,-1908.96288859,0.00016289,2]
[389620917,1759752638941,-818.67050092,0.00016292,2]
[389620918,1759752638954,-2500.0,0.00016294,3]
[389620919,1759752638967,-7284.10464357,0.00016301,2]
[389620920,1759752638979,-2484.746,0.00016302,2]
[389620921,1759752638993,-175.433,0.00016302,2]
[389620922,1759752639007,-2500.0,0.00016303,3]
[389620923,1759752639021,-15475.55177702,0.00016304,2]
[389620924,1759752639033,-150.0,0.00016306,2]
[389620925,1759752639046,-200.0,0.00016307,2]
[389620926,1759752639059,-7284.10464357,0.00016307,2]
[389620927,1759752639072,-7284.10464357,0.00016309,2]
[389620928,1759752639086,-76227.63993624,0.00016311,2]
[389620929,1759752639099,-2500.0,0.00016312,3]
[389620930,1759752639113,-1425.0,0.00016313,2]
[389620931,1759752639127,-11968.69518499,0.00016317,2]
[389620932,1759752639140,-2500.0,0.00016321,3]
[389620933,1759752639154,-103045.47937566,0.00016325,2]
[389620934,1759752639167,-4672.89972109,0.00016325,2]
[389620935,1759752639179,-859.0,0.00016326,2]
[389620936,1759752639191,-635.88,0.00016327,2]
[389620937,1759752639204,-15475.55177702,0.00016328,2]
[389620938,1759752639217,-2500.0,0.0001633,3]
[389620939,1759752639230,-11968.69518499,0.00016331,2]
[389620940,1759752639243,-103045.47937566,0.00016331,2]
[389620941,1759752639256,-103045.47937566,0.00016333,2]
[389620942,1759752639269,-76227.63993624,0.00016333,2]
[389620943,1759752639282,-4672.89972109,0.00016337,2]
[389620944,1759752639295,-183.12889679,0.00016338,2]
[389620945,1759752639308,-234.10848869,0.00016338,2]
[389620946,1759752639321,-1263.37128378,0.00016338,2]
[389620947,1759752639335,-1908.96288859,0.00016338,2]
[389620948,1759752639348,-1216.07281315,0.00016338,2]
[389620949,1759752639361,-180.05196356,0.00016338,2]
[389620950,1759752639373,-210.83704388,0.00016338,2]
[389620951,1759752639385,-200.98456454,0.00016338,2]
[389620952,1759752639397,-237.27978535,0.00016338,2]
[389620953,1759752639410,-2764.6902,0.00016338,2]
[389620954,1759752639423,-492.5706,0.00016338,2]
[389620955,1759752639435,-2440.9639,0.00016338,2]
[389620956,1759752639450,-265.2334,0.00016338,2]
[389620957,1759752639463,-2500.0,0.00016338,3]
[389620958,1759752639475,-859.0,0.00016342,2]
[389620959,1759752639487,-11968.69518499,0.00016344,2]
[389620960,1759752639499,-410.1809912,0.00016345,2]
[389620961,1759752639510,-2500.0,0.00016347,3]
[389620962,1759752639524,-410.1809912,0.00016355,2]
[389620963,1759752639536,-2500.0,0.00016356,3]
[389620964,1759752639548,-7284.10464357,0.00016358,2]
[389620965,1759752639561,-76227.63993624,0.0001636,2]
[389620966,1759752639573,-4672.89972109,0.00016365,2]
[389620967,1759752639585,-2500.0,0.00016365,3]
[389620968,1759752639597,-76227.63993624,0.00016366,2]
[389620969,1759752639610,-4672.89972109,0.00016368,2]
[389620970,1759752639622,-700.0,0.0001637,2]
[389620971,1759752639634,-700.0,0.0001637,2]
[389620972,1759752639647,-907.85281298,0.0001637,2]
[389620973,1759752639659,-700.0,0.0001637,2]
[389620974,1759752639671,-532.04033263,0.0001637,2]
[389620975,1759752639683,-2500.0,0.00016374,3]
[389620976,1759752639694,-410.1809912,0.00016376,2]
[389620977,1759752639706,-103045.47937566,0.00016378,2]
[389620978,1759752639718,-150.0,0.0001638,2]
[389620979,1759752639729,-2500.0,0.00016382,3]
[389620980,1759752639741,-187.87273912,0.00016385,2]
[389620981,1759752639754,-410.1809912,0.00016385,2]
[389620982,1759752639766,-1000.0,0.00016387,2]
[389620983,1759752639777,-15475.55177702,0.0001639,2]
[389620984,1759752639789,-2500.0,0.00016391,3]
[389620985,1759752639800,-15475.55177702,0.00016391,2]
[389620986,1759752639812,-350.46440155,0.00016392,2]
[389620987,1759752639824,-168.40353846,0.00016392,2]
[389620988,1759752639836,-7284.10464357,0.00016393,2]
[389620989,1759752639848,-15475.55177702,0.00016395,2]
[389620990,1759752639859,-2500.0,0.000164,3]
[389620991,1759752639871,-370.68887098,0.000164,3]
[389620992,1759752639882,-370.68887098,0.000164,3]
[389620993,1759752639894,-385.0,0.000164,2]
[389620994,1759752639905,-90818.0,0.00016411,2]
[389620995,1759752639916,-190.21218168,0.00016422,2]
[389620996,1759752639928,-1570.00256748,0.00016424,2]
[389620997,1759752639941,-500.0,0.00016428,2]
[389620998,1759752639952,-539.58315383,0.00016428,2]
[389620999,1759752639964,-151.0,0.00016434,2]
[389621000,1759752639976,-151.0,0.00016435,2]
[389621001,1759752639987,-548799.53229033,0.00016436,2]
[389621003,1759752639999,-859.0,0.00016437,2]
[389621005,1759752640010,-150.34225924,0.00016437,2]
[389621007,1759752640021,-150.0,0.00016437,2]
[389621008,1759752640033,-150.0,0.00016437,2]
[389621009,1759752640044,-150.0,0.00016437,2]
[389621010,1759752640056,-150.0,0.00016437,2]
[389621011,1759752640068,-500.0,0.00016437,2]
[389621012,1759752640080,-150.0,0.00016437,2]
[389621013,1759752640091,-500.0,0.00016437,2]
[389621014,1759752640104,-150.0,0.00016437,2]
[389621015,1759752640116,-500.0,0.00016437,2]
[389621016,1759752640127,-150.0,0.00016437,2]
[389621017,1759752640139,-150.0,0.00016437,2]
[389621018,1759752640151,-208.2772744,0.00016437,2]
[389621019,1759752640163,-156.76977018,0.00016437,2]
[389621020,1759752640175,-500.0,0.00016437,2]
[389621021,1759752640187,-150.0,0.00016437,2]
[389621022,1759752640199,-500.0,0.00016437,2]
[389621023,1759752640210,-150.0,0.00016437,2]
[389621024,1759752640222,-500.0,0.00016437,2]
[389621025,1759752640234,-150.0,0.00016437,2]
[389621026,1759752640246,-648.0,0.00016437,2]
[389621027,1759752640257,-500.0,0.00016437,2]
[389621028,1759752640269,-150.0,0.00016437,2]
[389621029,1759752640280,-500.0,0.00016437,2]
[389621030,1759752640292,-150.0,0.00016437,2]
[389621031,1759752640304,-500.0,0.00016437,2]
[389621032,1759752640316,-179.00529582,0.00016437,2]
[389621033,1759752640327,-500.0,0.00016437,2]
[389621034,1759752640338,-1826.0,0.00016437,2]
[389621035,1759752640349,-500.0,0.00016437,2]
[389621036,1759752640361,-500.0,0.00016437,2]
[389621037,1759752640373,-500.0,0.00016437,2]
[389621038,1759752640384,-150.0,0.00016437,2]
[389621039,1759752640396,-150.0,0.00016437,2]
[389621040,1759752640407,-500.0,0.00016437,2]
[389621041,1759752640418,-598.0,0.00016437,2]
[389621042,1759752640430,-150.0,0.00016437,2]
[389621043,1759752640441,-150.0,0.00016437,2]
[389621044,1759752640456,-150.0,0.00016437,2]
[389621045,1759752640468,-993.0,0.00016437,2]
[389621046,1759752640480,-536.0,0.00016437,2]
[389621047,1759752640492,-500.0,0.00016437,2]
[389621048,1759752640500,-150.0,0.00016437,2]
[389621049,1759752640510,-678.0,0.00016437,2]
[389621050,1759752640519,-150.0,0.00016437,2]
[389621051,1759752640531,-666.0,0.00016437,2]
[389621053,1759752640540,-500.0,0.00016438,2]
[389621054,1759752640549,-500.0,0.00016438,2]
[389621055,1759752640558,-500.0,0.00016438,2]
[389621056,1759752640568,-500.0,0.00016438,2]
[389621057,1759752640577,-500.0,0.00016438,2]
[389621058,1759752640587,-500.0,0.00016438,2]
[389621059,1759752640597,-500.0,0.00016438,2]
[389621060,1759752640606,-500.0,0.00016438,2]
[389621061,1759752640616,-500.0,0.00016438,2]
[389621062,1759752640625,-500.0,0.00016438,2]
[389621063,1759752640635,-500.0,0.00016438,2]
[389621064,1759752640646,-500.0,0.00016438,2]
[389621065,1759752641038,-500.0,0.00016438,2]
[389621066,1759752641060,-500.0,0.00016438,2]
[389621067,1759752641069,-500.0,0.00016438,2]
[389621068,1759752641079,-500.0,0.00016438,2]
[389621069,1759752641088,-575.98,0.00016438,2]
[389621070,1759752641098,-500.0,0.00016438,2]
[389621071,1759752641107,-500.0,0.00016438,2]
[389621072,1759752641116,-500.0,0.00016438,2]
[389621073,1759752641125,-500.0,0.00016438,2]
[389621074,1759752641135,-500.0,0.00016438,2]
[389621075,1759752641143,-500.0,0.00016438,2]
[389621076,1759752641153,-500.0,0.00016438,2]
[389621077,1759752641161,-500.0,0.00016438,2]
[389621078,1759752641171,-500.0,0.00016438,2]
[389621079,1759752641180,-500.0,0.00016438,2]
[389621080,1759752641189,-500.0,0.00016438,2]
[389621081,1759752641198,-500.0,0.00016438,2]
[389621082,1759752641207,-500.0,0.00016438,2]
[389621083,1759752641217,-500.0,0.00016438,2]
[389621084,1759752641226,-500.0,0.00016438,2]
[389621085,1759752641235,-500.0,0.00016438,2]
[389621086,1759752641245,-361.36509793,0.00016438,2]
[389621087,1759752641254,-500.0,0.00016438,2]
[389621088,1759752641263,-253.91,0.00016438,2]
[389621089,1759752641273,-300.0,0.00016438,2]
[389621090,1759752641283,-300.0,0.00016438,2]
[389621091,1759752641292,-300.0,0.00016438,2]
[389621092,1759752641302,-300.0,0.00016438,2]
[389621093,1759752641312,-300.0,0.00016438,2]
[389621094,1759752641321,-300.0,0.00016438,2]
[389621095,1759752641331,-300.0,0.00016438,2]
[389621096,1759752641340,-300.0,0.00016438,2]
[389621097,1759752641350,-300.0,0.00016438,2]
[389621098,1759752641359,-300.0,0.00016438,2]
[389621099,1759752641368,-300.0,0.00016438,2]
[389621100,1759752641377,-300.0,0.00016438,2]
[389621101,1759752641387,-300.0,0.00016438,2]
[389621102,1759752641396,-300.0,0.00016438,2]
[389621103,1759752641405,-300.0,0.00016438,2]
[389621104,1759752641414,-300.0,0.00016438,2]
[389621105,1759752641423,-300.0,0.00016438,2]
[389621106,1759752641433,-300.0,0.00016438,2]
[389621107,1759752641442,-300.0,0.00016438,2]
[389621108,1759752641455,-300.0,0.00016438,2]
[389621109,1759752641464,-300.0,0.00016438,2]
[389621110,1759752641474,-300.0,0.00016438,2]
[389621111,1759752641482,-300.0,0.00016438,2]
[389621112,1759752641492,-300.0,0.00016438,2]
[389621113,1759752641501,-300.0,0.00016438,2]